Workbook

Sheet Capa
A10: Disclaimer
A11: A apresentação a seguir é um material de apoio disponibilizado aos acionistas como forma de auxiliar no cálculo do desconto de holding observado na Cosan S.A. (“Cosan” ou “Companhia”).
A13: Todas as informações contidas neste documento são públicas conforme descrito neste e em outros documentos públicos divulgados pela Companhia, notadamente suas demonstrações financeiras trimestrais e anuais auditadas. Esse material está sujeito a revisão e ajuste sem aviso prévio e deve ser lido e analisado considerando a data base das informações utilizadas, nos termos divulgados pela Cosan.
A15: Ao fazer esta planilha, nem a Companhia, nem qualquer de seus afiliados, executivos, diretores, funcionários, agentes, representantes ou quaisquer terceiros agindo em seu nome, assume qualquer obrigação de fornecer acesso ou publicar qualquer informação adicional, atualizar esta ferramenta ou corrigir quaisquer imprecisões. A Companhia também não se responsabiliza pelo uso desse material no todo ou em parte de forma diversa da seguir apresentada. Também, a Cosan não se responsabiliza por alterações ou intervenções realizadas por terceiros, nem por relatórios, análises, matérias jornalísticas, publicações ou previsões de terceiros que se baseiem neste material.
A17: O material não substitui a necessidade de o investidor ou acionista procurar seus próprios assessores e seguir com a leitura cuidadosa dos documentos e informações tornados públicos pela Cosan, para que possa conduzir sua própria análise, avaliação e investigação independente sobre a Cosan, suas atividades e situação financeira no momento da tomada de decisão de investimento.
A19: A apresentação do material não se trata de uma declaração ou garantia com expectativa de rendimentos futuros e/ou pagamento e/ou retorno de qualquer valor investido.

Sheet Guia e Premissas
B6: Guia e Premissas
B9: Guia | D9: Inputs
B11: Como usar esta ferramenta? | D11: Entradas e valores base
B13: Todas as células destacadas em amarelo são editáveis, permitindo ao usuário determinar os métodos de avaliação de cada ativo do portfólio da COSAN. Uma vez escolhido o método de avaliação de cada ativo/dívida, será apresentado o valor da Soma das Partes (SOTP). Este valor pode ser comparado com a capitalização de mercado de CSAN3, indicando o desconto implícito no preço de mercado de CSAN3. | D13: Todos os valores apresentados aqui são informações públicas fornecidas pelas empresas envolvidas neste documento. As informações são atualizadas trimestralmente com a divulgação das demonstrações financeiras de cada empresa ou de outros documentos que contenham os dados exibidos. As fontes de cada valor podem ser encontradas na planilha "Fontes".
B15: Métodos de avaliação | D15: Último Update: | E15: 2023-09-30
B17: Ao avaliar os ativos, o usuário pode escolher diferentes métodos de avaliação para determinar o valor de cada empresa | D17: Companhias | E17: Múltiplo EV/EBITDA | F17: Equity Value (@100%) (R$ bn) | G17: Total de ações ex-tesouraria (bn) | H17: Ações detidas (bn) | I17: Participação (%) ¹ | J17: Preço de mercado (R$ por ação) | K17: Preço Médio Bloomberg (R$ por ação) | L17: EBITDA LTM (R$ bn) | M17: EBITDA Guidance (RS bn) | N17: Dívida Líquida (R$ bn) | O17: Book Value (R$ bn) | P17: Parcelas a pagar (R$ bn)
B18: Capitalização de Mercado: Número de ações detidas pela Cosan no ativo multiplicado pelo preço de mercado da última data disponível | D18: Raízen | E18: 10 | F18: - | G18: =10352509484-26394646 -> 10326114838 | H18: 4557597117 | I18: =H18/G18 -> 0.441366108 | J18: 3.55516554 | K18: 5.771538462 | L18: 15855700000 | M18: 14000000000 | N18: 3.035002114e+10 | O18: 22802200000 | P18: -
B19: Preço Alvo: Número de ações detidas pela Cosan no ativo multiplicado pelo preço médio bloomberg para cada um deles ou com o preço alvo inserido pelo usuário | D19: Rumo | E19: 11 | F19: - | G19: =1854868949-910479 -> 1853958470 | H19: 563296990 | I19: =H19/G19 -> 0.3038347402 | J19: 22.82 | K19: 28.00857143 | L19: 5348399988 | M19: 5550000000 | N19: 9459612623 | O19: 1.613509786e+10 | P19: -
B20: EV/EBITDA Guidance: Múltiplo utilizado para determinar o valuation da empresa. Nesta opção, o usuário deve insirir um múltiplo justo do ativo. Esse método utiliza o valor médio do EBITDA apresentado pela empresa como guidance, quando a empresa publica o guidance para o ano, ou o EBITDA LTM, quando a empresa não publica o guidance | D20: Vale | E20: 10 | F20: - | G20: 4302854300 | H20: 220366700 | I20: 0.05121407434 | J20: 67.58 | K20: 79.97555556 | L20: 82463000000 | M20: - | N20: 50121000000 | O20: 197667000000 | P20: -
B21: Book Value: Valor do ativo menos o total do passivo = valor contábil da empresa | D21: Compass | E21: 8.5 | F21: 28.6 | G21: - | H21: - | I21: 0.88 | J21: - | K21: - | L21: 4114961985 | M21: 4200000000 | N21: 3900184726 | O21: 8619544667 | P21: -
D22: Moove | E22: 8.5 | F22: 7.4 | G22: - | H22: - | I22: 0.7 | J22: - | K22: - | L22: 1129542873 | M22: - | N22: 1627393030 | O22: 2131901123 | P22: -
D23: Cosan Investimentos² | E23: - | F23: 6 | G23: - | H23: - | I23: 1 | J23: - | K23: - | L23: 2103717820 | M23: - | N23: -426880409.9 | O23: 5069694000 | P23: =-(296*2+202*4)*10^6 -> -1400000000
B24: Definições
B25: Equity Value: estimativa do valor de mercado (market cap) apresentada no Cosan Day 2023 para empresas não listadas | D25: Corporativo³ | E25: Múltiplo G&A | F25: Input G&A (RS bn) | G25: Input Dívida Líquida (RS bn) | H25: Preço Médio Bloomberg (R$ por ação) | I25: G&A LTM (R$ bn) | J25: Dívida Líquida (R$ bn) | K25: Preço de mercado (R$ por ação) | L25: Total de ações ex-tesouraria (bn)
B26: Total de ações ex-tesouraria: total de ações excluindo ações mantidas em tesouraria | D26: Cosan | E26: 10 | F26: 3 | G26: 14.45133211 | H26: 24.00846154 | I26: 349797382.6 | J26: 1.445133211e+10 | K26: 17.14 | L26: =1874070932-6570872 -> 1867500060
B27: Ações detidas: total de ações detidas pela Cosan
B28: Participação: total de ações detidas dividido pela número de total de ações ex-tesouraria | D28: Collar Financing (4131) e Derivativos (R$ bn) | E28: Estrutura de financiamento da Vale (R$ bn) | F28: 4131 (R$ bn) | G28: MTM Derivativos (R$ bn)
B29: Preço de Mercado (R$ por ação): preço de fechamento por ação na data da atualização desta planilha | D29: =8.4373-0.1203 -> 8.317 | E29: =F29+G29 -> 8316950766 | F29: 8437283992 | G29: -120333226.1
B30: Preço Médio Bloomberg (R$ por ação): média do preço target dos analistas Sell Side que cobrem a Companhia extraida da Bloomberg
B31: Valor de Mercado: preço de mercado multiplicado pelo número de ações em circulação | D31: Valor de Resgate Atualizado das Ações preferenciais (R$ bn)
B32: EBITDA LTM: EBITDA ajustado acumulado dos últimos doze meses | D32: 8.8432
B33: EBITDA Guidance: valor médio do EBITDA apresentado pela empresa como guidance para o ano, quando aplicável
B34: Parcelas a pagar: valor em aberto a ser pago pelo aumento de participação no segmento de Terras (Radar, Tellus e Janus) | D34: TVM Vale (R$ bn)
B35: Dívida Líquida: é a medida que considera empréstimos e financiamentos (dívida bruta) menos caixa e equivalente de caixa e títulos e valores mobiliários | D35: 14906555909
B36: Book Value: valor do patrimônio líquido na data da última atualização
B37: Collar Financing (4131) e Derivativos: estrutura de financiamento da aquisição de participação minoritária na Vale + MTM dos derivativos do collar | D37: Nota 1: Para efeito de cálculo de soma das partes, para Raízen e Compass consideramos os percentuais totais detidos pela Cosan Nove e Cosan Dez, respectivamente, uma vez que a distribuição de dividendos é desproporcional ao percentual detido por cada assionista destas empresas e que o valor das ações preferenciais atualizado no caso de um possível resgate pela Cosan está sendo considerado como passivo.
B38: Ações preferenciais: estrutura de equity utilizada para captação de Recursos para aquisição de participação minoritária na Vale. A estrutura inclui a emissão de ações preferenciais de holdings intermediárias entre Cosan e Compass/Raizen | D38: Nota 2: Cosan Investimentos considera os seguintes ativos: Terras (Radar, Tellus e Janus); Porto São Luís, no Maranhão; e aportes de investimentos no Climate Tech Fund e Ventures SPV, ambos administrados pela Fifth Wall.
B39: TVM Vale: valor de mercado das ações de Vale detidas pela Cosan | D39: Nota 3: O Corporativo considera as empresas conforme estrutura demosntrada no Guia de Modelagem e nas demonstrações financeiras disponíveis no site de RI da Cosan.

Sheet Modelo indicativo da SOTP
B6: Modelo indicativo da SOTP¹
B7: (R$ bn)
B9: Componentes
B11: Companhias | F11: Método de valuation | G11: Múltiplo Implícito² | H11: Valor (RS bn)
B13: (a) | C13: Raízen | F13: Preço Alvo | G13: =(H13/'Guia e Premissas'!I18+'Guia e Premissas'!N18)/IF(F13="EV/EBITDA Guidance",'Guia e Premissas'!M18,'Guia e Premissas'!L18) -> 5.672886728 | H13: =_xlfn.IFS($F13="Capitalização de mercado", 'Guia e Premissas'!H18*'Guia e Premissas'!J18, $F13="EV/EBITDA LTM", (('Guia e Premissas'!E18*'Guia e Premissas'!L18)-'Guia e Premissas'!N18)*'Guia e Premissas'!I18, $F13="EV/EBITDA Guidance", (('Guia e Premissas'!E18*'Guia e Premissas'!M18)-'Guia e Premissas'!N18)*'Guia e Premissas'!I18, $F13="Preço Alvo", 'Guia e Premissas'!H18*'Guia e Premissas'!K18) -> 2.630434705e+10
B14: (b) | C14: Rumo | F14: Preço Alvo | G14: =(H14/'Guia e Premissas'!I19+'Guia e Premissas'!N19)/IF(F14="EV/EBITDA Guidance",'Guia e Premissas'!M19,'Guia e Premissas'!L19) -> 11.47751496 | H14: =_xlfn.IFS($F14="Capitalização de mercado", 'Guia e Premissas'!H19*'Guia e Premissas'!J19, $F14="EV/EBITDA LTM", (('Guia e Premissas'!E19*'Guia e Premissas'!L19)-'Guia e Premissas'!N19)*'Guia e Premissas'!I19, $F14="EV/EBITDA Guidance", (('Guia e Premissas'!E19*'Guia e Premissas'!M19)-'Guia e Premissas'!N19)*'Guia e Premissas'!I19, $F14="Preço Alvo", 'Guia e Premissas'!H19*'Guia e Premissas'!K19) -> 1.577714398e+10
B15: (c) | C15: Vale | F15: Preço Alvo | G15: =(H15/'Guia e Premissas'!I20+'Guia e Premissas'!N20)/IF(F15="EV/EBITDA Guidance",'Guia e Premissas'!L20,'Guia e Premissas'!L20) -> 4.780861273 | H15: =_xlfn.IFS($F15="Capitalização de mercado", 'Guia e Premissas'!H20*'Guia e Premissas'!J20, $F15="EV/EBITDA LTM", (('Guia e Premissas'!E20*'Guia e Premissas'!L20)-'Guia e Premissas'!N20)*'Guia e Premissas'!I20, $F15="EV/EBITDA Guidance", (('Guia e Premissas'!E20*'Guia e Premissas'!M20)-'Guia e Premissas'!N20)*'Guia e Premissas'!I20, $F15="Preço Alvo", 'Guia e Premissas'!H20*'Guia e Premissas'!K20) -> 1.762394926e+10
B16: (d) | C16: Compass | F16: Equity Value | G16: =(H16/'Guia e Premissas'!I21+'Guia e Premissas'!N21)/IF(F16="EV/EBITDA Guidance",'Guia e Premissas'!M21,'Guia e Premissas'!L21) -> 7.89805224 | H16: =_xlfn.IFS($F16="Book Value", 'Guia e Premissas'!O21, $F16="Equity Value", 'Guia e Premissas'!F21*1000000000*'Guia e Premissas'!I21,F16= "EV/EBITDA LTM", (('Guia e Premissas'!E21*'Guia e Premissas'!L21)-'Guia e Premissas'!N21)*'Guia e Premissas'!I21, F16= "EV/EBITDA Guidance", (('Guia e Premissas'!E21*'Guia e Premissas'!M21)-'Guia e Premissas'!N21)*'Guia e Premissas'!I21) -> 25168000000
B17: (e) | C17: Moove | F17: Equity Value | G17: =(H17/'Guia e Premissas'!I22+'Guia e Premissas'!N22)/IF(F17="EV/EBITDA Guidance",'Guia e Premissas'!L22,'Guia e Premissas'!L22) -> 7.992076481 | H17: =_xlfn.IFS($F17="Book Value", 'Guia e Premissas'!O22, $F17="Equity Value", 'Guia e Premissas'!F22*1000000000*'Guia e Premissas'!I22,F17= "EV/EBITDA LTM", (('Guia e Premissas'!E22*'Guia e Premissas'!L22)-'Guia e Premissas'!N22)*'Guia e Premissas'!I22, F17= "EV/EBITDA Guidance", (('Guia e Premissas'!E22*'Guia e Premissas'!M22)-'Guia e Premissas'!N22)*'Guia e Premissas'!I22) -> 5180000000
B18: (f) | C18: Cosan Investimentos | F18: Equity Value | G18: =(H18/'Guia e Premissas'!I23+'Guia e Premissas'!N23 -'Guia e Premissas'!P23 )/IF(F18="EV/EBITDA Guidance",'Guia e Premissas'!L23,'Guia e Premissas'!L23) -> 2.649176394 | H18: =_xlfn.IFS($F18="Book Value", 'Guia e Premissas'!O23 + 'Guia e Premissas'!P23, $F18="Equity Value", 'Guia e Premissas'!F23*1000000000*'Guia e Premissas'!I23 + 'Guia e Premissas'!P23,F18= "EV/EBITDA LTM", (('Guia e Premissas'!E23*'Guia e Premissas'!L23)-'Guia e Premissas'!N23)*'Guia e Premissas'!I23, F18= "EV/EBITDA Guidance", (('Guia e Premissas'!E23*'Guia e Premissas'!M23)-'Guia e Premissas'!N23)*'Guia e Premissas'!I23) -> 4600000000
B21: Corporativo | H21: Valor (RS bn)
B23: (g) | C23: G&A | F23: Múltiplo | H23: =-_xlfn.IFS(F23="Múltiplo", 'Guia e Premissas'!E26*'Guia e Premissas'!I26, F23="Input", 'Guia e Premissas'!F26*1000000000) -> -3497973826
B24: (h) | C24: Dívida Líquida (Corporativo) | F24: Último disponível | H24: =-_xlfn.IFS(F24="Último disponível", 'Guia e Premissas'!J26, F24="Input", 'Guia e Premissas'!G26*1000000000) -> -1.445133211e+10
B26: Estrutura Vale - Collar financing e Preferenciais | H26: Valor (RS bn)
B28: (i) | C28: Collar Financing e Derivativos | F28: Último disponível | H28: =-_xlfn.IFS(F28="Último disponível", 'Guia e Premissas'!E29, F28="Input", 'Guia e Premissas'!D29*1000000000) -> -8316950766
B29: (j) | C29: Valor de Resgate Atualizado das Ações Preferenciais² | F29: Último disponível | H29: =-_xlfn.IFS(F29="Último disponível",'Guia e Premissas'!D32*1000000000, F29="Input", 'Guia e Premissas'!D32*1000000000) -> -8843200000
B31: Resultados
B33: (k) | C33: Soma das Partes - SOTP (k = a+b+c+d+e+f-g-h-i-j) | H33: =SUM(H13:H18,H23:H24,H28:H29) -> 5.954398359e+10
B34: (l) | C34: CSAN3 Valor de mercado atual | H34: ='Guia e Premissas'!L26*'Guia e Premissas'!K26 -> 3.200895103e+10
C35: CSAN3 Preço por ação da Soma das Partes - SOTP | H35: =H33/'Guia e Premissas'!L26 -> 31.88432754
C36: CSAN3 Preço-alvo por ação (R$) | H36: ='Guia e Premissas'!H26 -> 24.00846154
B37: (m) | C37: Desconto de holding (m = k-l) | H37: =H34-H33 -> -2.753503256e+10
B38: (n) | C38: Desconto de holding (%) (n=1-k/l) | H38: =1-H34/H33 -> 0.4624318177
B40: Nota 1: Para Raízen, Rumo e Compass - utilizado EBITDA Guidance quando valuation por "EV/EBITDA Guidance"
B41: Nota 2: A Cosan possui uma opção de compra a qual lhe confere o direito de recompra da totalidade das ações preferenciais da Cosan Nove e da Cosan Dez. O valor aqui apresentado é o de um pontencial resgate antecipado atualizado, conforme explicado no release de resultados e na nota explicativa 1.1 Participação Societária na Vale S.A. do ITR do 2T23

Sheet Fontes
B6: Fontes
B9: Fontes
B11: Raízen
B12: Total de ações ex-tesouraria | D12: https://ri.raizen.com.br/sobre-a-raizen/composicao-acionaria/
B13: Ações detidas pela Cosan | D13: https://ri.raizen.com.br/sobre-a-raizen/estrutura-societaria/
B14: Preço Médio Bloomberg | E14: Bloomberg
B15: EBITDA | D15: https://ri.raizen.com.br/informacoes-financeiras/central-de-resultados/ | E15: Release de Resultados
B16: EBITDA Guidance | D16: https://ri.raizen.com.br/informacoes-financeiras/central-de-resultados/ | E16: Release de Resultados 1T24
B17: Dívida Líquida | D17: https://ri.raizen.com.br/informacoes-financeiras/central-de-resultados/ | E17: Demostrações Financeiras / ITR
B18: Book Value | D18: https://ri.raizen.com.br/informacoes-financeiras/central-de-resultados/ | E18: Demostrações Financeiras / ITR
B20: Rumo
B21: Total de ações ex-tesouraria | D21: https://ri.rumolog.com/governanca-corporativa/composicao-acionaria/
B22: Ações detidas pela Cosan | D22: https://ri.rumolog.com/governanca-corporativa/composicao-acionaria/
B23: Preço Médio Bloomberg | E23: Bloomberg
B24: EBITDA | D24: https://ri.rumolog.com/informacoes-financeiras/central-de-resultados/ | E24: Release de Resultados
B25: EBITDA Guidance | D25: https://ri.rumolog.com/divulgacoes-e-documentos/avisos-comunicados-e-fatos-relevantes/ | E25: Fato Relevante - Atualização Guidance 2023 - 10/ago/23
B26: Dívida Líquida | D26: https://ri.rumolog.com/informacoes-financeiras/central-de-resultados/ | E26: Demostrações Financeiras / ITR
B27: Book Value | D27: https://ri.rumolog.com/informacoes-financeiras/central-de-resultados/ | E27: Demostrações Financeiras / ITR
B29: Vale
B30: Total de ações ex-tesouraria | D30: https://www.vale.com/pt/conheca-nossa-empresa
B31: Ações detidas pela Cosan | D31: https://www.cosan.com.br/informacoes-financeiras/central-de-resultados/ | E31: Release de Resultados
B32: Preço Médio Bloomberg | E32: Bloomberg
B33: EBITDA | D33: https://www.vale.com/pt/comunicados-resultados-apresentacoes-e-relatorios | E33: Reporte trimestral - BRL
B34: Dívida Líquida | D34: https://www.vale.com/pt/comunicados-resultados-apresentacoes-e-relatorios | E34: Demostrações Financeiras / ITR
B35: Book Value | D35: https://www.vale.com/pt/comunicados-resultados-apresentacoes-e-relatorios | E35: Demostrações Financeiras / ITR
B37: Compass
B38: Participação | D38: https://www.compassbr.com/governanca-corporativa/composicao-acionaria/
B39: EBITDA | D39: https://www.compassbr.com/divulgacao-de-resultados/central-de-resultados/ | E39: Release de Resultados
B40: EBITDA Guidance | D40: https://www.compassbr.com/divulgacao-de-resultados/central-de-resultados/ | E40: Release de Resultados
B41: Dívida Líquida | D41: https://www.compassbr.com/divulgacao-de-resultados/central-de-resultados/ | E41: Release de Resultados
B42: Book Value | D42: https://www.compassbr.com/divulgacao-de-resultados/central-de-resultados/ | E42: Demostrações Financeiras / ITR
B44: Moove
B45: Participação | D45: https://www.cosan.com.br/informacoes-financeiras/central-de-resultados/ | E45: Release de Resultados
B46: EBITDA | D46: https://www.cosan.com.br/informacoes-financeiras/central-de-resultados/ | E46: Planilha por segmento
B47: Dívida Líquida | D47: https://www.cosan.com.br/informacoes-financeiras/central-de-resultados/ | E47: Planilha por segmento
B48: Book Value | D48: https://www.cosan.com.br/informacoes-financeiras/central-de-resultados/ | E48: Planilha por segmento
B50: Cosan Investimentos
B51: Book Value | D51: https://www.cosan.com.br/informacoes-financeiras/central-de-resultados/ | E51: Demostrações Financeiras / ITR
B52: Dívida Líquida | D52: https://www.cosan.com.br/informacoes-financeiras/central-de-resultados/ | E52: Demostrações Financeiras / ITR
B53: Parcelas a pagar | D53: https://api.mziq.com/mzfilemanager/v2/d/6aa68515-2422-4cc4-bafa-8870ccdfedb0/264b73aa-4879-077d-eb03-61aaa16e4ca7?origin=2 | E53: Fatos Relevantes / Comunicados ao Mercado / Guia de modelagem
B55: COSAN
B56: G&A | D56: https://www.cosan.com.br/informacoes-financeiras/central-de-resultados/ | E56: Planilha por segmento
B57: Dívida Líquida | D57: https://www.cosan.com.br/informacoes-financeiras/central-de-resultados/ | E57: Planilha por segmento
B58: Ações em circulação | D58: https://www.cosan.com.br/sobre-a-cosan/composicao-acionaria/
B60: Estrutura de Financiamento da Vale
B61: 4131 | D61: https://www.cosan.com.br/informacoes-financeiras/central-de-resultados/ | E61: Release de Resultados
B62: Valor de Resgate Atualizado das Ações Preferenciais | D62: https://www.cosan.com.br/informacoes-financeiras/central-de-resultados/ | E62: Demostrações Financeiras / ITR
B63: MTM Derivativos | D63: https://www.cosan.com.br/informacoes-financeiras/central-de-resultados/ | E63: Release de Resultados
B64: TVM | D64: https://www.cosan.com.br/informacoes-financeiras/central-de-resultados/ | E64: Demostrações Financeiras / ITR

Sheet Others (hidden)
A1: Capitalização de mercado | C1: Book Value | E1: Múltiplo | G1: Book Value | I1: Último disponível | K1: Source: | L1: GRÁFICO | M1: GRÁFICO
A2: Preço Alvo | C2: Equity Value | E2: Input | G2: Input | I2: Input | K2: ='Modelo indicativo da SOTP'!C13 -> Raízen | L2: Raízen | M2: ='Modelo indicativo da SOTP'!H13 -> 2.630434705e+10
A3: EV/EBITDA Guidance | C3: EV/EBITDA Guidance | K3: ='Modelo indicativo da SOTP'!C14 -> Rumo | L3: Rumo | M3: ='Modelo indicativo da SOTP'!H14 -> 1.577714398e+10
K4: ='Modelo indicativo da SOTP'!C16 -> Compass | L4: Compass | M4: ='Modelo indicativo da SOTP'!H16 -> 25168000000
K5: ='Modelo indicativo da SOTP'!C17 -> Moove | L5: Moove | M5: ='Modelo indicativo da SOTP'!H17 -> 5180000000
K6: ='Modelo indicativo da SOTP'!C18 -> Cosan Investimentos | L6: Cosan Investimentos | M6: ='Modelo indicativo da SOTP'!H18 -> 4600000000
A7: Capitalização de mercado | C7: Book Value | K7: ='Modelo indicativo da SOTP'!C15 -> Vale | L7: Vale | M7: ='Modelo indicativo da SOTP'!H15 -> 1.762394926e+10
A8: EV/EBITDA LTM | C8: Equity Value | K8: ='Modelo indicativo da SOTP'!C23 -> G&A | L8: G&A | M8: ='Modelo indicativo da SOTP'!H23 -> -3497973826
C9: EV/EBITDA LTM | K9: ='Modelo indicativo da SOTP'!C24 -> Dívida Líquida (Corporativo) | L9: Dívida Líquida (Corporativo) | M9: ='Modelo indicativo da SOTP'!H24 -> -1.445133211e+10
K10: ='Modelo indicativo da SOTP'!C28 -> Collar Financing e Derivativos | L10: Collar Financing (4131) e Derivativos | M10: ='Modelo indicativo da SOTP'!H28 -> -8316950766
K11: ='Modelo indicativo da SOTP'!C29 -> Valor de Resgate Atualizado das Ações Preferenciais² | L11: Valor de Resgate das Ações Preferenciais | M11: ='Modelo indicativo da SOTP'!H29 -> -8843200000
K12: ='Modelo indicativo da SOTP'!C37 -> Desconto de holding (m = k-l) | L12: Desconto de holding | M12: ='Modelo indicativo da SOTP'!H37 -> -2.753503256e+10
K13: ='Modelo indicativo da SOTP'!C34 -> CSAN3 Valor de mercado atual | L13: CSAN3 Valor de mercado atual | M13: ='Modelo indicativo da SOTP'!H34 -> 3.200895103e+10
